bitfinex-derivatives/quotes_ETHF0:USTF0_20260119
["timestamp","ask_amount","ask_price","bid_price","bid_amount"]
[1768828403360,0.94139249,3225.3,3224.1,0.13787494]
[1768828403559,0.94139249,3225.2,3224.1,0.13787494]
[1768828403762,0.94139249,3225.1,3224.1,0.13787494]
[1768828403960,1.26948199,3225.6,3224.1,0.13787494]
[1768828404156,0.9413879,3225.5,3224.1,0.13787494]
[1768828404369,0.9413879,3225.4,3224.1,0.13787494]
[1768828404571,0.9413879,3225.3,3224.1,0.13787494]
[1768828404770,0.9413879,3225.2,3224.1,0.13787494]
[1768828404971,0.9413879,3225.1,3224.1,0.13787494]
[1768828405172,1.26948199,3225.6,3224.1,0.13787494]
[1768828405368,0.94141537,3225.5,3224.1,0.13787494]
[1768828405664,0.94141537,3225.4,3224.1,0.13787494]
[1768828405862,0.94141537,3225.3,3224.1,0.13787494]
[1768828406062,0.94141537,3225.2,3224.1,0.13787494]
[1768828406369,0.94141537,3225.1,3224.1,0.13787494]
[1768828406563,1.11437199,3225.5,3224.1,0.13787494]
[1768828406764,0.9414495,3225.4,3224.1,0.13787494]
[1768828406963,0.9414495,3225.3,3224.1,0.13787494]
[1768828407170,0.9414495,3225.2,3224.1,0.13787494]
[1768828407373,0.9414495,3225.1,3224.1,0.13787494]
[1768828407575,1.11437199,3225.5,3224.1,0.13787494]
[1768828407764,0.94149053,3225.4,3224.1,0.13787494]
[1768828407965,0.94149053,3225.3,3224.1,0.13787494]
[1768828408164,0.94149053,3225.2,3224.1,0.13787494]
[1768828408364,0.94149053,3225.1,3224.1,0.13787494]
[1768828408565,1.11437199,3225.5,3224.1,0.13787494]
[1768828408764,0.94148374,3225.4,3224.1,0.13787494]
[1768828408966,0.94148374,3225.3,3224.1,0.13787494]
[1768828409169,0.94148374,3225.2,3224.1,0.13787494]
[1768828409368,0.94148374,3225.1,3224.1,0.13787494]
[1768828409668,1.11437199,3225.5,3224.1,0.13787494]
[1768828409868,0.94154064,3225.4,3224.1,0.13787494]
[1768828410072,2.35339964,3225.3,3223.7,0.13809483]
[1768828410364,1.07030657,3225.2,3223.7,0.13809483]
[1768828410579,0.94154064,3225.1,3223.7,0.13809483]
[1768828411577,1.41334963,3224.9,3223.5,0.15521]
[1768828411777,0.94154064,3224.8,3223.5,0.15521]
[1768828411979,1.41334963,3224.9,3223.5,0.15521]
[1768828412170,0.94102794,3224.8,3223.5,0.15521]
[1768828412366,1.41334963,3224.9,3223.5,0.15521]
[1768828412575,0.94106283,3224.8,3223.5,0.15521]
[1768828412775,1.41334963,3224.9,3223.5,0.15521]
[1768828412974,0.94102854,3224.8,3223.5,0.15521]
[1768828413175,1.41334963,3224.9,3223.5,0.15521]
[1768828413374,0.94105422,3224.8,3223.5,0.15521]
[1768828413578,1.41334963,3224.9,3223.5,0.15521]
[1768828413776,0.94105422,3224.8,3223.5,0.15521]
[1768828413979,1.41334963,3224.9,3223.5,0.15521]
[1768828414178,0.94105425,3224.8,3223.5,0.15521]
[1768828414377,1.41334963,3224.9,3223.5,0.15521]
[1768828414579,0.94110921,3224.8,3223.5,0.15521]
[1768828414780,1.41334963,3224.9,3223.5,0.15521]
[1768828414974,0.94110923,3224.8,3223.5,0.15521]
[1768828415179,0.94119302,3224.7,3223.5,0.15521]
[1768828415474,1.41334963,3224.9,3223.5,0.15521]
[1768828415672,0.94119239,3224.8,3223.5,0.15521]
[1768828415874,0.94119239,3224.7,3223.5,0.15521]
[1768828416082,1.41334963,3224.9,3223.5,0.15521]
[1768828416280,0.94064282,3224.8,3223.5,0.15521]
[1768828416480,0.94064282,3224.7,3223.5,0.15521]
[1768828416683,1.41334963,3224.9,3223.5,0.15521]
[1768828416981,0.94064362,3224.8,3223.5,0.15521]
[1768828417180,0.94064362,3224.7,3223.5,0.15521]
[1768828417380,1.41334963,3224.9,3223.5,0.15521]
[1768828417582,0.940782,3224.8,3223.5,0.15521]
[1768828417780,0.940782,3224.7,3223.5,0.15521]
[1768828417979,0.940782,3224.6,3223.5,0.15521]
[1768828418182,0.13025656,3224.8,3223.5,0.15521]
[1768828418383,0.94085509,3224.7,3223.5,0.15521]
[1768828418584,0.94085509,3224.6,3223.5,0.15521]
[1768828418784,0.13025656,3224.8,3223.5,0.15521]
[1768828418984,0.94085504,3224.7,3223.5,0.15521]
[1768828419190,0.94085504,3224.6,3223.5,0.15521]
[1768828419482,0.94094572,3224.5,3223.5,0.15521]
[1768828419688,0.94094572,3224.4,3223.5,0.15521]
[1768828419890,1.24462855,3224.8,3223.5,0.15521]
[1768828420089,0.9409457,3224.7,3223.5,0.15521]
[1768828420284,0.9409457,3224.6,3223.5,0.15521]
[1768828420483,0.9409457,3224.5,3223.5,0.15521]
[1768828420692,0.9409457,3224.4,3223.5,0.15521]
[1768828420899,1.24462855,3224.8,3223.5,0.15521]
[1768828421098,0.94092836,3224.7,3223.5,0.15521]
[1768828421296,0.94092836,3224.6,3223.5,0.15521]
[1768828421497,0.94092836,3224.5,3223.5,0.15521]
[1768828421803,0.94092836,3224.4,3223.5,0.15521]
[1768828421986,1.24462855,3224.8,3223.5,0.15521]
[1768828422185,0.94074457,3224.7,3223.5,0.15521]
[1768828422391,1.07100113,3224.6,3223.5,0.15521]
[1768828422591,0.94074457,3224.5,3223.5,0.15521]
[1768828422789,0.94074457,3224.4,3223.5,0.15521]
[1768828422994,1.11437199,3224.8,3223.5,0.15521]
[1768828423298,0.9406305,3224.7,3223.5,0.15521]
[1768828423502,0.9406305,3224.6,3223.5,0.15521]
[1768828423691,0.9406305,3224.5,3223.5,0.15521]
[1768828424000,0.9406305,3224.4,3223.5,0.15521]
[1768828424199,1.24462855,3224.8,3223.5,0.15521]
[1768828424396,0.94050378,3224.7,3223.5,0.15521]
[1768828424599,0.94050378,3224.6,3223.4,0.00235127]
[1768828424902,0.94050378,3224.5,3223.4,0.00235127]
[1768828425108,0.94050378,3224.4,3223.4,0.00235127]
[1768828425302,0.94050378,3224.3,3223.4,0.00235127]
[1768828425602,0.13025656,3224.6,3223.4,0.00235127]
[1768828425901,0.9402724,3224.5,3223.4,0.00235127]
[1768828426109,0.9402724,3224.4,3223.4,0.00235127]
[1768828426294,0.9402724,3224.3,3223.4,0.00235127]
[1768828426495,0.13025656,3224.6,3223.4,0.00235127]
[1768828426704,0.94011005,3224.5,3223.4,0.00235127]
[1768828427002,0.94011005,3224.4,3223.4,0.00235127]
[1768828427204,0.94011005,3224.3,3223.4,0.00235127]
[1768828427399,0.13025656,3224.6,3223.4,0.00235127]
[1768828427602,0.94001323,3224.5,3223.4,0.00235127]
[1768828427803,0.94001323,3224.4,3223.4,0.00235127]
[1768828428001,0.94001323,3224.3,3223.4,0.00235127]
[1768828428305,0.13025656,3224.6,3223.4,0.00235127]
[1768828428503,0.93992861,3224.5,3223.4,0.00235127]
[1768828431497,1.28431206,3224.1,3223.0,0.15892181]
[1768828437901,1.28431206,3223.9,3223.0,0.15892181]
[1768828438101,1.2883125,3223.9,3223.0,0.15892181]
[1768828438906,0.00400044,3223.9,3223.1,1.28431206]
[1768828439408,0.00400044,3223.9,3223.0,0.28960413]
[1768828439607,0.00400044,3223.9,3223.1,1.28431206]
[1768828439811,0.00400044,3223.9,3223.0,0.28960413]
[1768828441609,1.28431206,3223.7,3223.0,0.15892181]
[1768828442109,1.2883125,3223.9,3223.0,0.15892181]
[1768828442707,1.28431206,3223.7,3223.0,0.00369181]
[1768828442909,0.00400044,3223.9,3223.0,0.00369181]
[1768828443210,1.28431206,3223.8,3223.0,0.00369181]
[1768828444505,1.28431206,3223.8,3222.6,0.13068232]
[1768828445217,1.28431206,3223.6,3222.6,0.13068232]
[1768828445404,1.28431206,3223.6,3222.6,0.13389731]
[1768828445803,1.28431206,3223.6,3222.6,0.00321499]
[1768828448213,1.28431206,3223.4,3222.6,0.00321499]
[1768828449211,1.28431206,3223.6,3222.6,0.00321499]
[1768828449714,1.28431206,3223.7,3222.6,0.00321499]
[1768828449915,0.94167748,3223.6,3222.6,0.00321499]
[1768828450112,1.28431206,3223.7,3222.6,0.00321499]
[1768828450313,0.94171197,3223.6,3222.6,0.00321499]
[1768828450612,1.28431206,3223.7,3222.6,0.00321499]
[1768828450815,0.94178717,3223.6,3222.6,0.00321499]
[1768828451013,1.28431206,3223.7,3222.6,0.00321499]
[1768828451214,0.94181932,3223.6,3222.6,0.00321499]
[1768828451417,1.28431206,3223.5,3222.6,0.00321499]
[1768828454014,0.9417334,3223.4,3222.6,0.00321499]
[1768828454313,1.28431206,3223.5,3222.6,0.00321499]
[1768828454515,0.94167722,3223.4,3222.6,0.00321499]
[1768828454709,1.28431206,3223.5,3222.4,0.15526]
[1768828455016,0.94166884,3223.4,3222.0,1.41499438]
[1768828455208,1.28431206,3223.5,3222.0,1.41499438]
[1768828455412,0.94156684,3223.4,3222.0,1.41499438]
[1768828455615,1.28431206,3223.5,3222.0,1.41499438]
[1768828455813,0.94156652,3223.4,3222.0,1.4178954]
[1768828456013,1.28431206,3223.5,3222.0,1.4178954]
[1768828456214,1.28431206,3223.3,3222.0,0.13358334]
[1768828456517,0.94159268,3223.2,3222.0,0.13358334]
[1768828456814,1.28431206,3223.3,3222.0,0.13358334]
[1768828457007,0.94138672,3223.2,3222.0,0.13358334]
[1768828457207,1.28431206,3223.3,3222.0,0.13358334]
[1768828457417,0.94122383,3223.2,3222.0,0.13358334]
[1768828457616,1.28431206,3223.3,3222.0,0.13358334]
[1768828457815,1.28431206,3223.1,3222.0,0.13358334]
[1768828458711,1.28431206,3222.9,3222.0,0.13358334]
[1768828459019,1.2889656,3222.9,3222.0,0.13358334]
[1768828460016,1.2889656,3222.9,3222.0,0.00290102]
[1768828461309,0.00465354,3222.9,3222.0,0.00290102]
[1768828475027,0.00465354,3222.9,3222.0,0.1367776]
[1768828476022,0.00465354,3222.9,3222.0,0.00290102]
[1768828477234,1.2889656,3222.9,3222.0,0.00290102]
[1768828479035,0.00465354,3222.9,3222.0,0.00290102]
[1768828479335,1.2889656,3222.9,3222.0,0.00290102]
[1768828480837,0.00465354,3222.9,3222.0,0.00290102]
[1768828481230,0.94157685,3222.8,3222.0,0.00290102]
[1768828481430,0.00465354,3222.9,3222.0,0.00290102]
[1768828481630,0.94157699,3222.8,3222.0,0.00290102]
[1768828481833,0.00465354,3222.9,3222.0,0.00290102]
[1768828482028,0.94157629,3222.8,3222.0,0.00290102]
[1768828482334,0.00465354,3222.9,3222.0,0.00290102]
[1768828482533,0.94179878,3222.8,3222.0,0.00290102]
[1768828482734,0.00465354,3222.9,3222.0,0.00290102]
[1768828483037,0.94179875,3222.8,3222.0,0.00290102]
[1768828483336,0.00465354,3222.9,3222.0,0.00290102]
[1768828483536,0.94208178,3222.8,3222.0,0.00290102]
[1768828483738,0.00465354,3222.9,3222.0,0.00290102]
[1768828483931,0.94208178,3222.8,3222.0,0.00290102]
[1768828484132,0.00465354,3222.9,3222.0,0.00290102]
[1768828484342,0.94232726,3222.8,3222.0,0.00290102]
[1768828484640,0.00465354,3222.9,3222.0,0.00290102]
[1768828484939,0.94234197,3222.8,3222.0,0.00290102]
[1768828485134,0.00465354,3222.9,3222.0,0.00290102]
[1768828485342,0.94262231,3222.8,3222.0,0.00290102]
[1768828485545,0.94262231,3222.7,3222.0,0.00290102]
[1768828485748,0.00465354,3222.9,3222.0,0.00290102]
[1768828486041,0.94262231,3222.8,3222.0,0.00290102]
[1768828486237,0.94262231,3222.7,3222.0,0.00290102]
[1768828486438,0.00465354,3222.9,3222.0,0.00290102]
[1768828486634,0.94280513,3222.8,3222.0,0.00290102]
[1768828486838,0.94280513,3222.7,3222.0,0.00290102]
[1768828487137,0.00465354,3222.9,3222.0,0.00290102]
[1768828487337,0.94296033,3222.8,3222.0,0.00290102]
[1768828487642,0.94296033,3222.7,3222.0,0.00290102]
[1768828487842,0.00465354,3222.9,3222.0,0.00290102]
[1768828488035,0.9429595,3222.8,3222.0,0.00290102]
[1768828488235,0.9429595,3222.7,3222.0,0.00290102]
[1768828488533,0.00465354,3222.9,3222.0,0.00290102]
[1768828488732,0.94313738,3222.8,3222.0,0.00290102]
[1768828488936,0.94313738,3222.7,3222.0,0.00290102]
[1768828489135,0.00465354,3222.9,3222.0,0.00290102]
[1768828489337,0.94338473,3222.8,3222.0,0.00290102]
[1768828489538,0.94338473,3222.7,3222.0,0.00290102]
[1768828489733,0.00465354,3222.9,3222.0,0.00290102]
[1768828489934,0.94337055,3222.8,3222.0,0.00290102]
[1768828490232,0.94337055,3222.7,3222.0,0.00290102]
[1768828490433,0.00465354,3222.9,3222.0,0.00290102]
[1768828490738,0.94337038,3222.8,3222.0,0.00290102]
[1768828491041,0.94337038,3222.7,3222.0,0.00290102]
[1768828491236,0.00465354,3222.9,3222.0,0.00290102]
[1768828491442,0.9433728,3222.8,3222.0,0.00290102]
[1768828491638,0.9433728,3222.7,3222.0,0.00290102]
[1768828491847,0.00465354,3222.9,3222.0,0.00290102]
[1768828492040,0.94337695,3222.8,3222.0,0.00290102]
[1768828492240,0.94337695,3222.7,3222.0,0.00290102]
[1768828492439,0.00465354,3222.9,3222.0,0.00290102]
[1768828492640,0.94338113,3222.8,3222.0,0.00290102]
[1768828492840,0.94338113,3222.7,3222.0,0.00290102]
[1768828493044,0.00465354,3222.9,3222.0,0.00290102]
[1768828493248,0.94337805,3222.8,3222.0,0.00290102]
[1768828493542,0.94337805,3222.7,3222.0,0.00290102]
[1768828493844,0.00465354,3222.9,3222.0,0.00290102]
[1768828494045,0.94338485,3222.8,3222.0,0.00290102]
[1768828494245,0.94338485,3222.7,3222.0,0.00290102]
[1768828494445,0.00465354,3222.9,3222.0,0.00290102]
[1768828494647,0.9422226,3222.8,3222.0,0.1406021]
[1768828494846,0.9422226,3222.7,3222.0,0.1406021]
[1768828495049,0.00465354,3222.9,3222.0,0.1406021]
[1768828495250,0.94222199,3222.8,3222.0,0.1406021]
[1768828495548,0.94222199,3222.7,3222.0,0.1406021]
[1768828495747,0.00465354,3222.9,3222.0,0.2958821]
[1768828495951,0.00465354,3222.9,3222.1,0.13770108]
[1768828498351,0.00465354,3222.9,3222.1,0.29297108]
[1768828498546,0.00465354,3222.9,3222.2,0.13770108]
[1768828500356,1.11437199,3223.4,3222.2,0.13770108]
[1768828500552,0.94145475,3223.3,3222.2,0.13770108]
[1768828500754,0.94145475,3223.2,3222.2,0.00465354]
[1768828500950,0.94145475,3223.1,3222.2,0.00465354]
[1768828501154,0.94145475,3223.0,3222.2,0.00465354]
[1768828501348,1.25047662,3223.5,3222.2,0.00465354]
[1768828501546,0.94138718,3223.4,3222.2,0.00465354]
[1768828501748,0.94138718,3223.3,3222.2,0.00465354]
[1768828502042,0.94138718,3223.2,3222.2,0.00465354]
[1768828502243,0.94138718,3223.1,3222.2,0.00465354]
[1768828502545,0.13610463,3223.5,3222.2,0.00465354]
[1768828502744,0.94125999,3223.4,3222.2,0.00465354]
[1768828502942,0.94125999,3223.3,3222.2,0.00465354]
[1768828503156,0.94125999,3223.2,3222.2,0.00465354]
[1768828503358,0.94125999,3223.1,3222.2,0.00465354]
[1768828503657,0.13610463,3223.5,3222.2,0.00465354]
[1768828503856,0.94119754,3223.4,3222.2,0.00465354]
[1768828504055,0.94119754,3223.3,3222.2,0.00465354]
[1768828504359,0.94119754,3223.2,3222.2,0.00465354]
[1768828504655,0.94119754,3223.1,3222.2,0.00465354]
[1768828504856,0.13610463,3223.5,3222.2,0.00465354]
[1768828505057,0.94113901,3223.4,3222.2,0.00465354]
[1768828505248,0.94113901,3223.3,3222.2,0.00465354]
[1768828505448,0.94113901,3223.2,3222.2,0.00465354]
[1768828505655,0.94113901,3223.1,3222.2,0.00465354]
[1768828505848,0.13610463,3223.5,3222.2,0.00465354]
[1768828506048,0.94186342,3223.4,3222.2,0.00465354]
[1768828506249,0.94186342,3223.3,3222.2,0.00465354]
[1768828506450,0.94186342,3223.2,3222.2,0.00465354]
[1768828506649,0.94186342,3223.1,3222.2,0.00465354]
[1768828506850,0.13610463,3223.5,3222.2,0.00465354]
[1768828507050,0.13610463,3223.4,3222.2,0.00465354]
[1768828507259,1.07786028,3223.3,3222.2,0.00465354]
[1768828507461,0.94175565,3223.2,3222.2,0.00465354]
[1768828507758,0.94175565,3223.1,3222.2,0.00465354]
[1768828507962,0.94175565,3223.0,3222.2,0.00465354]
[1768828508260,0.13610463,3223.3,3222.2,0.00465354]
[1768828508456,0.94168508,3223.2,3222.2,0.00465354]
[1768828508656,0.94168508,3223.1,3222.2,0.00465354]
[1768828508959,0.94168508,3223.0,3222.2,0.00465354]
[1768828509158,0.13610463,3223.3,3222.2,0.00465354]
[1768828509356,0.94169511,3223.2,3222.2,0.00465354]
[1768828509657,0.94169511,3223.1,3222.2,0.00465354]
[1768828509858,0.94169511,3223.0,3222.2,0.00465354]
[1768828510054,0.13610463,3223.3,3222.2,0.00465354]
[1768828510254,0.94170688,3223.2,3222.2,0.00465354]
[1768828510456,0.94170688,3223.1,3222.2,0.00465354]
[1768828510652,0.94170688,3223.0,3222.2,0.00465354]
[1768828510852,0.13610463,3223.3,3222.2,0.00465354]
[1768828511053,0.94170616,3223.2,3222.2,0.00465354]
[1768828511254,0.13610463,3223.3,3222.2,0.00465354]
[1768828511255,0.94170616,3223.1,3222.2,0.00465354]
[1768828511455,0.94170616,3223.0,3222.2,0.00465354]
[1768828511656,0.13610463,3223.3,3222.2,0.00465354]
[1768828511853,0.94166573,3223.2,3222.2,0.00465354]
[1768828512058,0.94166573,3223.1,3222.2,0.00465354]
[1768828512262,0.94166573,3223.0,3222.2,0.00465354]
[1768828512457,1.25047662,3223.3,3222.2,0.00465354]
[1768828512458,0.94166573,3222.9,3222.2,0.00465354]
[1768828512652,1.25047662,3223.3,3222.2,0.00465354]
[1768828512858,0.94159249,3223.2,3222.2,0.00465354]
[1768828513068,0.94159249,3223.1,3222.2,0.00465354]
[1768828513261,0.94159249,3223.0,3222.2,0.00465354]
[1768828513463,0.94159249,3222.9,3222.2,0.00465354]
[1768828513662,1.25047662,3223.3,3222.2,0.00465354]
[1768828513863,0.94163214,3223.2,3222.2,0.00465354]
[1768828514068,0.94163214,3223.1,3222.2,0.00465354]
[1768828514262,0.94163214,3223.0,3222.2,0.00465354]
[1768828514561,0.94163214,3222.9,3222.2,0.00465354]
[1768828514868,1.25047662,3223.3,3222.2,0.00465354]
[1768828515063,0.94165345,3223.2,3222.2,0.00465354]
[1768828515254,0.94165345,3223.1,3222.2,0.00465354]
[1768828515460,0.94165345,3223.0,3222.2,0.00465354]
[1768828515658,0.94165345,3222.9,3222.2,0.00465354]
[1768828515859,1.25047662,3223.3,3222.2,0.00465354]
[1768828516059,0.94168543,3223.2,3222.2,0.00465354]
[1768828516263,0.94168543,3223.1,3222.2,0.00465354]
[1768828516468,0.94168543,3223.0,3222.2,0.00465354]
[1768828516670,0.94168543,3222.9,3222.2,0.00465354]
[1768828516855,1.11437199,3223.3,3222.2,0.00465354]
[1768828517058,0.94170405,3223.2,3222.3,0.15526]
[1768828517260,1.11837243,3223.9,3222.6,0.29295108]
[1768828517667,0.00400044,3223.9,3222.6,0.29295108]
[1768828518265,0.00400044,3223.9,3222.7,0.13770108]
[1768828526876,0.00400044,3223.9,3222.7,0.29295108]
[1768828527770,0.00400044,3223.9,3222.8,0.13354435]
[1768828529173,0.93633082,3223.8,3222.8,0.13354435]
[1768828529378,0.93633082,3223.7,3222.8,0.13354435]
[1768828529580,0.00400044,3223.9,3222.8,0.13354435]
[1768828529780,0.93633077,3223.8,3222.8,0.13354435]
[1768828529985,0.00400044,3223.9,3222.8,0.13354435]
[1768828530185,0.93633315,3223.8,3222.8,0.13354435]
[1768828530385,0.00400044,3223.9,3222.8,0.13354435]
[1768828530687,0.93628491,3223.8,3222.8,0.13354435]
[1768828530888,0.00400044,3223.9,3222.8,0.13354435]
[1768828531090,0.93628493,3223.8,3222.8,0.13354435]
[1768828531287,0.00400044,3223.9,3223.0,0.13354435]
[1768828532293,0.13619164,3224.9,3223.6,0.1552]
[1768828532494,1.07259862,3224.8,3223.6,0.1552]
[1768828532794,0.93640698,3224.7,3223.6,0.1552]
[1768828532990,0.93640698,3224.6,3223.6,0.1552]
[1768828533183,0.00318434,3224.6,3223.6,0.1552]
[1768828533384,0.00318434,3224.6,3223.9,0.00465354]
[1768828539409,1.285095,3224.4,3223.1,0.28877435]
[1768828540392,1.42755543,3224.4,3222.7,0.130994]
[1768828540700,1.07490531,3224.3,3222.7,0.130994]
[1768828540900,0.93244488,3224.2,3222.7,0.130994]
[1768828541100,0.14246043,3224.3,3222.7,0.130994]
[1768828541402,0.93255527,3224.2,3222.7,0.130994]
[1768828541598,0.14246043,3224.3,3222.7,0.130994]
[1768828541799,0.93256113,3224.2,3222.7,0.130994]
[1768828542000,0.14246043,3224.3,3222.7,0.130994]
[1768828542311,0.93255317,3224.2,3222.7,0.130994]
[1768828542504,0.14246043,3224.3,3222.7,0.130994]
[1768828542714,0.93272427,3224.2,3222.7,0.130994]
[1768828542899,0.14246043,3224.3,3222.7,0.130994]
[1768828543099,0.93272466,3224.2,3222.7,0.130994]
[1768828543305,0.14246043,3224.3,3222.7,0.130994]
[1768828543501,0.9329249,3224.2,3222.7,0.130994]
[1768828543701,0.14246043,3224.3,3222.7,0.130994]
[1768828543903,0.93291071,3224.2,3222.7,0.130994]
[1768828544102,0.14246043,3224.3,3222.7,0.130994]
[1768828544303,0.93315433,3224.2,3222.7,0.130994]
[1768828552203,0.93315433,3224.2,3222.7,0.286234]
[1768828552919,1.28434723,3224.0,3222.7,1.57058123]
[1768828554523,1.25683242,3224.3,3222.7,1.57058123]
[1768828554711,1.28434723,3224.0,3222.7,1.57058123]
[1768828554911,0.9345334,3223.9,3222.7,1.57058123]
[1768828561224,1.28434723,3223.8,3222.7,0.286234]
[1768828561616,0.14314173,3224.2,3222.7,0.15524]
[1768828561815,1.28434723,3223.8,3222.7,0.15524]
[1768828562524,0.14314173,3224.2,3222.7,0.15524]
[1768828562723,0.93503862,3224.1,3222.7,0.15524]
[1768828562922,1.28434723,3223.8,3222.7,0.15524]
[1768828564419,1.28434723,3224.0,3222.8,0.13780371]
[1768828564620,0.93528492,3223.9,3222.8,0.13780371]
[1768828564820,0.93528492,3223.8,3222.8,0.13780371]
[1768828565013,1.28434723,3224.0,3222.8,0.13780371]
[1768828565213,0.93528534,3223.9,3222.8,0.13780371]
[1768828565420,0.93528534,3223.8,3222.8,0.13780371]
[1768828565723,1.28434723,3224.0,3222.8,0.13780371]
[1768828565919,0.9354487,3223.9,3222.8,0.13780371]
[1768828566122,0.9354487,3223.8,3222.8,0.13780371]
[1768828566323,1.28434723,3224.0,3222.8,0.13780371]
[1768828566526,0.93559492,3223.9,3222.8,0.13780371]
[1768828566729,0.93559492,3223.8,3222.8,0.13780371]
[1768828566920,1.28434723,3224.0,3222.8,0.13780371]
[1768828567121,0.93558571,3223.9,3222.8,0.13780371]
[1768828567322,0.93558571,3223.8,3222.8,0.13780371]
[1768828567622,1.28434723,3224.0,3222.8,0.13780371]
[1768828567816,0.93583963,3223.9,3222.8,0.13780371]
[1768828568021,0.93583963,3223.8,3222.8,0.13780371]
[1768828570834,0.93583963,3223.8,3222.7,0.15524]
[1768828571036,1.28434723,3223.3,3222.4,0.13780371]
[1768828571731,1.28434723,3223.4,3222.4,0.13780371]
[1768828571931,0.93633753,3223.3,3222.4,0.13780371]
[1768828572131,1.28434723,3223.4,3222.2,2.422]
[1768828574531,0.93577442,3223.3,3222.2,2.422]
[1768828574729,1.28434723,3223.4,3222.2,2.422]
[1768828574929,1.11437199,3223.7,3222.2,2.422]
[1768828574930,1.28434723,3223.2,3222.2,2.422]
[1768828576033,1.28434723,3223.2,3222.1,0.15527]
[1768828577736,1.26957199,3223.7,3222.0,0.00290102]
[1768828577737,1.28434723,3222.8,3222.0,0.00290102]
[1768828579344,1.28434723,3222.4,3221.6,0.1553]
[1768828579736,1.28434723,3222.2,3221.2,0.13780371]
[1768828579939,1.28434723,3222.0,3220.8,0.13780371]
[1768828580145,1.28434723,3221.9,3220.8,0.13780371]
[1768828580442,1.28434723,3221.7,3220.8,0.00227202]
[1768828580636,1.28434723,3221.5,3220.8,0.00227202]
[1768828580829,1.42748896,3221.7,3220.0,0.29318371]
[1768828581037,0.9326585,3221.6,3220.4,1.28434723]
[1768828581230,1.28434723,3221.7,3220.4,1.42215094]
[1768828581831,0.00277983,3221.9,3220.6,1.42215094]
[1768828582036,0.9310968,3221.8,3220.6,1.42215094]
[1768828582238,1.28712706,3221.9,3220.6,1.42215094]
[1768828583136,0.00277983,3221.9,3220.7,0.13048043]
[1768828583341,0.00277983,3221.9,3221.0,1.28434723]
[1768828583537,0.00277983,3221.9,3220.9,0.13048043]
[1768828583736,1.28434723,3221.8,3220.5,0.28583043]
[1768828583938,1.28434723,3221.6,3220.5,0.28583043]
[1768828585247,1.28434723,3221.2,3220.4,0.00264809]
[1768828586249,1.28434723,3221.0,3220.4,0.00264809]
[1768828586640,1.28434723,3221.1,3220.4,0.00264809]
[1768828588043,0.14333327,3221.6,3220.4,0.00264809]
[1768828588044,1.28434723,3221.2,3220.4,0.00264809]
[1768828590339,0.14333327,3221.6,3220.4,0.00264809]
[1768828590644,1.28434723,3221.5,3220.4,0.00264809]
[1768828591039,1.28434723,3221.3,3220.4,0.00264809]
[1768828591947,0.14079782,3221.8,3220.4,0.00264809]
[1768828592153,1.28434723,3221.4,3220.4,0.00264809]
[1768828596354,0.14079782,3221.8,3220.4,0.00264809]
[1768828596542,1.28434723,3221.4,3220.4,0.00264809]
[1768828599253,1.28434723,3221.5,3220.4,0.00264809]
[1768828601757,1.28434723,3221.5,3220.4,0.15799809]
[1768828606261,1.28434723,3221.3,3220.4,0.15799809]
[1768828608266,0.93475808,3221.2,3220.4,0.15799809]
[1768828608466,1.28434723,3221.3,3220.4,0.15799809]
[1768828608657,0.93477226,3221.2,3220.4,0.15799809]
[1768828608858,1.28434723,3221.3,3220.4,0.15799809]
[1768828609066,0.93477306,3221.2,3220.4,0.15799809]
[1768828609262,0.93477306,3221.1,3220.4,1.44234532]
[1768828609461,1.11437199,3221.5,3220.4,0.15799809]
[1768828609764,0.93632249,3221.4,3220.4,0.15799809]
[1768828609961,0.93632249,3221.3,3220.4,0.15799809]
[1768828610164,0.93632249,3221.2,3220.4,0.15799809]
[1768828610366,0.93632249,3221.1,3220.4,0.15799809]
[1768828610663,0.93632249,3221.0,3220.4,0.15799809]
[1768828610855,1.28434723,3221.4,3220.4,0.15799809]
[1768828611060,0.93691451,3221.3,3220.4,0.15799809]
[1768828611261,0.93691451,3221.2,3220.4,0.15799809]
[1768828611568,1.28434723,3221.0,3220.4,0.00264809]
[1768828611879,1.28434723,3221.0,3219.9,0.13262055]
[1768828612771,1.28434723,3221.0,3219.9,0.13654804]
[1768828613369,1.28434723,3221.0,3219.9,0.29192804]
[1768828614263,0.93595981,3220.9,3219.9,0.29192804]
[1768828614463,1.28434723,3221.0,3219.9,0.29192804]
[1768828614663,0.93595922,3220.9,3219.9,0.29192804]
[1768828614870,1.24837198,3221.4,3219.9,0.29192804]
[1768828615074,0.93596079,3221.3,3219.9,0.29192804]
[1768828615369,0.93596079,3221.2,3219.9,0.29192804]
[1768828615572,0.93596079,3221.1,3219.9,0.29192804]
[1768828615771,0.93596079,3221.0,3219.9,0.29192804]
[1768828615964,0.93596079,3220.9,3219.9,0.29192804]
[1768828616163,1.24837198,3221.4,3219.9,0.29192804]
[1768828616363,0.93633677,3221.3,3219.9,0.29192804]
[1768828616563,0.93633677,3221.2,3219.9,0.29192804]
[1768828616766,0.93633677,3221.1,3219.9,0.29192804]
[1768828616967,0.93633677,3221.0,3219.9,0.29192804]
[1768828617159,0.93633677,3220.9,3219.9,0.15930749]
[1768828620464,0.13599437,3220.8,3219.5,0.44390979]
[1768828620668,1.28672499,3220.6,3219.3,0.13118058]
[1768828620863,0.93633677,3220.5,3219.3,0.13118058]
[1768828621172,0.93633677,3220.4,3219.2,0.15541]
[1768828621369,1.28672499,3220.6,3218.7,0.15544]
[1768828621370,1.28672499,3220.2,3218.7,0.15544]
[1768828621568,2.22162405,3220.1,3218.3,0.28664058]
[1768828621773,1.26973199,3220.3,3217.7,0.25350474]
[1768828621774,0.93489906,3220.0,3218.5,0.13118058]
[1768828621975,1.66827399,3220.5,3218.4,0.15545]
[1768828621976,0.93489906,3219.9,3218.7,0.13118058]
[1768828622170,1.26970199,3221.0,3219.2,0.13118058]
[1768828622374,0.93429192,3220.9,3219.2,0.13118058]
[1768828622571,0.93429192,3220.8,3219.2,0.13353668]
[1768828622774,0.93429192,3220.7,3219.2,0.13353668]
[1768828622974,0.93429192,3220.6,3219.2,0.13353668]
[1768828623178,0.93429192,3220.5,3219.2,0.13353668]
[1768828623377,0.93429192,3220.4,3219.2,0.13353668]
[1768828623577,1.28672499,3221.0,3219.2,0.13353668]
[1768828623881,0.93334546,3220.9,3219.2,0.13353668]
[1768828624076,0.93334546,3220.8,3219.2,0.13353668]
[1768828624278,0.93334546,3220.7,3219.2,0.13353668]
[1768828624474,0.93334546,3220.6,3219.2,0.13353668]
[1768828624673,0.93334546,3220.5,3219.2,0.13353668]
[1768828624875,1.28672499,3221.0,3219.2,0.13353668]
[1768828625074,0.93308888,3220.9,3219.2,0.13353668]
[1768828625271,1.28672499,3220.6,3219.2,0.13353668]
[1768828625475,0.93308888,3220.5,3219.2,0.13353668]
[1768828625681,0.93308888,3220.4,3219.2,0.13353668]
[1768828625980,1.28672499,3220.6,3219.2,0.13353668]
[1768828626182,0.93257508,3220.5,3219.2,0.0023561]